bitfinex/quotes_BTCUSD_20251007
["timestamp","ask_amount","ask_price","bid_price","bid_amount"]
[1759863423310,0.45168828,121030.0,121020.0,0.90391703]
[1759863423515,0.44668828,121030.0,121020.0,0.05106419]
[1759863423728,1.16213918,121030.0,121020.0,0.00486419]
[1759863424710,1.18973918,121030.0,121020.0,0.00486419]
[1759863425368,1.16213918,121030.0,121020.0,0.00486419]
[1759863428840,0.44668828,121030.0,121020.0,0.83149703]
[1759863429134,0.23208,121030.0,121020.0,1.62718473]
[1759863429318,0.23208,121030.0,121020.0,1.65580473]
[1759863429927,0.23208,121030.0,121020.0,1.7002249]
[1759863430356,0.23208,121030.0,121020.0,1.6202281]
[1759863430975,0.39732828,121030.0,121020.0,1.6202281]
[1759863431916,0.39732828,121030.0,121020.0,1.0050572]
[1759863432141,0.39732828,121030.0,121020.0,0.9764372]
[1759863432866,1.16213918,121030.0,121020.0,0.00486419]
[1759863433070,1.27286124,121030.0,121020.0,0.00486419]
[1759863433336,1.61286124,121030.0,121020.0,0.00486419]
[1759863433793,1.61286124,121030.0,121020.0,0.00086419]
[1759863434000,1.63767923,121030.0,121020.0,0.00286419]
[1759863434239,2.25640013,121030.0,121020.0,0.00286419]
[1759863434453,1.64122923,121030.0,121020.0,0.00286419]
[1759863436482,3.24236723,121030.0,121020.0,0.00286419]
[1759863440035,2.14162823,121030.0,121020.0,0.00286419]
[1759863440321,2.19128823,121030.0,121020.0,0.00286419]
[1759863440525,2.14162823,121030.0,121020.0,0.00286419]
[1759863442970,1.92422823,121030.0,121020.0,0.00286419]
[1759863443116,0.99690833,121030.0,121020.0,0.00286419]
[1759863443368,0.99690833,121030.0,121020.0,0.66559509]
[1759863443504,0.99982833,121030.0,121020.0,0.05042419]
[1759863443707,0.89954833,121030.0,121020.0,0.66559509]
[1759863443962,0.89954833,121030.0,121020.0,0.05042419]
[1759863445851,0.89954833,121030.0,121020.0,0.66559509]
[1759863446053,0.55954833,121030.0,121020.0,0.66559509]
[1759863446244,0.53473034,121030.0,121020.0,0.66559509]
[1759863447099,1.25222124,121030.0,121020.0,0.00286419]
[1759863447272,1.30605124,121030.0,121020.0,0.00286419]
[1759863447683,2.2860407,121030.0,121020.0,0.00286419]
[1759863447889,2.8186517,121030.0,121020.0,0.00286419]
[1759863454399,2.9045717,121030.0,121020.0,0.00286419]
[1759863459262,2.28968407,121030.0,121020.0,0.00286419]
[1759863460072,4.35759707,121030.0,121020.0,0.00286419]
[1759863460231,4.15571107,121030.0,121020.0,0.00286419]
[1759863460570,4.15532907,121030.0,121020.0,0.00286419]
[1759863460768,4.15490507,121030.0,121020.0,0.00286419]
[1759863461069,1.75707307,121030.0,121020.0,0.00286419]
[1759863461278,3.99437207,121030.0,121020.0,0.00286419]
[1759863461456,4.17964207,121030.0,121020.0,0.00286419]
[1759863461854,4.43441307,121030.0,121020.0,0.00286419]
[1759863462078,4.63461507,121030.0,121020.0,0.00286419]
[1759863462301,4.60972907,121030.0,121020.0,0.00286419]
[1759863462518,5.63599324,121030.0,121020.0,0.00286419]
[1759863462734,5.61453324,121030.0,121020.0,0.00286419]
[1759863462952,5.27455924,121030.0,121020.0,0.00286419]
[1759863463144,5.07435924,121030.0,121020.0,0.00286419]
[1759863463388,4.96853724,121030.0,121020.0,0.00086419]
[1759863463612,4.61111824,121030.0,121020.0,0.00286419]
[1759863463876,4.79019524,121030.0,121020.0,0.00286419]
[1759863464122,3.91180807,121030.0,121020.0,0.00286419]
[1759863464344,1.75507307,121030.0,121020.0,0.00286419]
[1759863464568,1.75507307,121030.0,121020.0,0.00086419]
[1759863464811,1.75807307,121030.0,121020.0,0.00086419]
[1759863465032,4.23154307,121030.0,121020.0,0.00086419]
[1759863465469,7.00004524,121030.0,121020.0,0.00086419]
[1759863465681,6.69824024,121030.0,121020.0,0.00086419]
[1759863465900,6.69801224,121030.0,121020.0,0.00086419]
[1759863466110,6.61432824,121030.0,121020.0,0.00086419]
[1759863466325,6.61433024,121030.0,121020.0,0.00086419]
[1759863466513,6.67584124,121030.0,121020.0,0.00086419]
[1759863466658,6.69127424,121030.0,121020.0,0.00086419]
[1759863467013,2.37352724,121030.0,121020.0,0.00086419]
[1759863467223,7.16444224,121030.0,121020.0,0.00086419]
[1759863467447,2.37352724,121030.0,121020.0,0.00086419]
[1759863467701,7.16444124,121030.0,121020.0,0.00086419]
[1759863467937,6.90943124,121030.0,121020.0,0.00086419]
[1759863468150,7.15327624,121030.0,121020.0,0.00086419]
[1759863468395,6.95376224,121030.0,121020.0,0.00086419]
[1759863468668,2.37352724,121030.0,121020.0,0.00086419]
[1759863468836,7.16086135,121030.0,121020.0,1e-08]
[1759863470531,5.96331235,121030.0,121020.0,1e-08]
[1759863470702,5.84028635,121030.0,121020.0,1e-08]
[1759863471074,5.20944943,121030.0,121020.0,1e-08]
[1759863471475,2.95610607,121030.0,121020.0,1e-08]
[1759863471634,2.83456507,121030.0,121020.0,1e-08]
[1759863471837,2.74175007,121030.0,121020.0,1e-08]
[1759863472022,2.69026107,121030.0,121020.0,1e-08]
[1759863472222,1.60778107,121030.0,121020.0,1e-08]
[1759863472462,1.88454307,121030.0,121020.0,1e-08]
[1759863472665,2.22454307,121030.0,121020.0,1e-08]
[1759863475096,1.6090889,121030.0,121020.0,1e-08]
[1759863475271,2.22454307,121030.0,121020.0,1e-08]
[1759863483239,1.6090889,121030.0,121020.0,1e-08]
[1759863483449,2.22454307,121030.0,121020.0,1e-08]
[1759863485847,2.83999724,121030.0,121020.0,1e-08]
[1759863486830,2.85773159,121030.0,121020.0,1e-08]
[1759863487294,2.87312507,121030.0,121020.0,1e-08]
[1759863487538,2.87012507,121030.0,121020.0,1e-08]
[1759863487713,2.87212507,121030.0,121020.0,1e-08]
[1759863488343,2.87012507,121030.0,121020.0,1e-08]
[1759863488553,2.87312507,121030.0,121020.0,1e-08]
[1759863489411,2.87512507,121030.0,121020.0,1e-08]
[1759863496964,1.64421673,121030.0,121020.0,1e-08]
[1759863497171,2.87512507,121030.0,121020.0,1e-08]
[1759863497374,1.64421673,121030.0,121020.0,1e-08]
[1759863497594,2.87512507,121030.0,121020.0,1e-08]
[1759863498029,1.64421673,121030.0,121020.0,1e-08]
[1759863498225,0.16531658,120980.0,120970.0,0.30935091]
[1759863498436,0.40011658,120980.0,120970.0,0.18083013]
[1759863498643,0.44702658,120980.0,120970.0,0.0450751]
[1759863498876,0.44702658,120980.0,120970.0,0.04766108]
[1759863499206,0.53948978,120980.0,120970.0,0.00309108]
[1759863499409,1.18116395,120980.0,120970.0,0.01209108]
[1759863499616,1.20599075,120980.0,120970.0,0.01509108]
[1759863499849,1.23216075,120980.0,120970.0,0.01509108]
[1759863500061,1.65528281,120980.0,120970.0,0.01509108]
[1759863500295,1.68336281,120980.0,120970.0,0.01509108]
[1759863500669,1.68336281,120980.0,120970.0,0.01209108]
[1759863500882,1.7467346,120980.0,120970.0,0.01209108]
[1759863501657,1.7467346,120980.0,120970.0,0.00309108]
[1759863501867,1.7467346,120980.0,120970.0,0.00509108]
[1759863502088,1.7467346,120980.0,120970.0,0.00309108]
[1759863502302,1.7457346,120980.0,120970.0,0.00309108]
[1759863502703,1.7477346,120980.0,120970.0,0.00309108]
[1759863505374,5.8440926,120980.0,120970.0,0.00309108]
[1759863505518,4.9995936,120980.0,120970.0,0.00309108]
[1759863507309,4.5000586,120980.0,120970.0,0.00309108]
[1759863508060,3.67518243,120980.0,120970.0,0.00309108]
[1759863508277,3.8316866,120980.0,120970.0,0.00309108]
[1759863510288,1.6226766,120980.0,120970.0,0.00309108]
[1759863510457,1.9172666,120980.0,120970.0,0.00309108]
[1759863510701,1.9669266,120980.0,120970.0,0.00309108]
[1759863510907,1.8902776,120980.0,120970.0,0.00309108]
[1759863511794,1.8882776,120980.0,120970.0,0.00309108]
[1759863512270,1.8892776,120980.0,120970.0,0.00509108]
[1759863512741,0.84223043,120980.0,120970.0,0.00509108]
[1759863512957,0.72950043,120980.0,120970.0,0.04966108]
[1759863514094,0.82303043,120980.0,120970.0,0.00509108]
[1759863514308,1.4646546,120980.0,120970.0,0.00509108]
[1759863516658,0.82303043,120980.0,120970.0,0.00509108]
[1759863518589,1.4384846,120980.0,120970.0,0.00509108]
[1759863521178,1.43879706,120980.0,120970.0,0.00509108]
[1759863522754,1.43875706,120980.0,120970.0,0.00509108]
[1759863525200,2.05452369,120980.0,120970.0,0.00509108]
[1759863527615,1.43875706,120980.0,120970.0,0.00509108]
[1759863529669,2.08126369,120980.0,120970.0,0.00509108]
[1759863533849,0.84973043,120980.0,120970.0,0.00509108]
[1759863534048,2.08126369,120980.0,120970.0,0.00509108]
[1759863536607,1.89899984,120980.0,120970.0,0.00509108]
[1759863536811,2.06431642,120980.0,120970.0,0.00509108]
[1759863537890,2.03757642,120980.0,120970.0,0.00509108]
[1759863538699,0.80604316,120980.0,120970.0,0.00509108]
[1759863538907,2.03757642,120980.0,120970.0,0.00509108]
[1759863540053,2.03757642,120980.0,120970.0,0.04839108]
[1759863540054,0.45906316,120980.0,120970.0,0.04839108]
[1759863540279,1.39550979,120980.0,120970.0,0.04839108]
[1759863541636,0.39175316,120980.0,120970.0,0.04839108]
[1759863541839,0.71243316,120980.0,120970.0,0.11734108]
[1759863542114,0.6041579,120980.0,120970.0,0.76013771]
[1759863542300,0.57419517,120980.0,120970.0,0.14437108]
[1759863542738,0.22868837,120980.0,120970.0,0.95212795]
[1759863542941,0.46336837,120980.0,120970.0,1.03212475]
[1759863543528,0.46236837,120980.0,120970.0,0.95212795]
[1759863543753,0.29705179,120980.0,120970.0,0.95212795]
[1759863543967,0.29705179,120980.0,120970.0,0.95112795]
[1759863544286,0.29705179,120980.0,120970.0,0.95512795]
[1759863544499,0.46236837,120980.0,120970.0,0.95512795]
[1759863545697,0.29705179,120980.0,120970.0,0.95512795]
[1759863546149,0.46236837,120980.0,120970.0,1.03512475]
[1759863546572,0.46236837,120980.0,120970.0,0.17403108]
[1759863546780,0.46236837,120980.0,120970.0,0.33936132]
[1759863546985,0.46236837,120980.0,120970.0,0.95512795]
[1759863547216,0.46236837,120980.0,120970.0,0.78979771]
[1759863547527,0.46236837,120980.0,120970.0,0.17403108]
[1759863547729,0.46236837,120980.0,120970.0,0.14737108]
[1759863547933,0.50618837,120980.0,120970.0,0.05139108]
[1759863548341,1.121955,120980.0,120970.0,0.12034108]
[1759863548548,1.80782163,120980.0,120970.0,0.00809108]
[1759863548725,1.83467163,120980.0,120970.0,0.00809108]
[1759863548925,1.85949824,120980.0,120970.0,0.00809108]
[1759863549493,1.9693603,120980.0,120970.0,0.00809108]
[1759863558858,1.76593105,120980.0,120970.0,0.00809108]
[1759863559044,1.8264372,120980.0,120970.0,0.00809108]
[1759863561863,1.9123972,120980.0,120970.0,0.00809108]
[1759863563407,0.65412394,120980.0,120970.0,0.00809108]
[1759863563580,0.02482661,120980.0,120970.0,0.95075795]
[1759863563777,0.16530297,120990.0,120980.0,0.16531658]
[1759863563778,0.39990297,120990.0,120980.0,0.16531658]
[1759863563982,0.39990297,120990.0,120980.0,0.91603321]
[1759863564665,0.39990297,120990.0,120980.0,0.30026658]
[1759863564898,0.39990297,120990.0,120980.0,0.91603321]
[1759863565578,0.39990297,120990.0,120980.0,0.13495]
[1759863565915,0.39990297,120990.0,120980.0,0.75071663]
[1759863566119,0.44381297,120990.0,120980.0,0.72348663]
[1759863566325,0.39990297,120990.0,120980.0,0.75071663]
[1759863566631,0.39990297,120990.0,120980.0,0.75171663]
[1759863567853,0.46043511,120990.0,120980.0,0.75471663]
[1759863569339,1.12011174,120990.0,120980.0,0.04893861]
[1759863569539,0.50434511,120990.0,120980.0,0.04893861]
[1759863570358,0.57188511,120990.0,120980.0,0.04893861]
[1759863570990,1.18765174,120990.0,120980.0,0.04893861]
[1759863571611,1.21433174,120990.0,120980.0,0.00606861]
[1759863571810,1.3251738,120990.0,120980.0,0.00606861]
[1759863571946,1.35000041,120990.0,120980.0,0.00606861]
[1759863572201,1.32228041,120990.0,120980.0,0.00606861]
[1759863581487,1.34880041,120990.0,120980.0,0.00606861]
[1759863581730,3.55983104,120990.0,120980.0,0.00606861]
[1759863582309,2.32829778,120990.0,120980.0,0.00606861]
[1759863582637,3.53456104,120990.0,120980.0,0.00606861]
[1759863582761,3.12046404,120990.0,120980.0,0.00606861]
[1759863582959,2.30758641,120990.0,120980.0,0.00506861]
[1759863583163,2.20308539,120990.0,120980.0,0.00506861]
[1759863583568,2.13592939,120990.0,120980.0,0.00206861]
[1759863587178,2.751718,120990.0,120980.0,0.00206861]
[1759863587359,2.13592939,120990.0,120980.0,0.00206861]
[1759863589857,2.12283039,120990.0,120980.0,0.00206861]
[1759863590282,1.50704178,120990.0,120980.0,0.00206861]
[1759863590727,2.12283039,120990.0,120980.0,0.00206861]
[1759863590960,2.20879039,120990.0,120980.0,0.00206861]
[1759863592435,2.824579,120990.0,120980.0,0.00206861]
[1759863592640,1.59300178,120990.0,120980.0,0.00206861]
[1759863592844,2.824579,120990.0,120980.0,0.00206861]
[1759863595666,1.59300178,120990.0,120980.0,0.00206861]
[1759863595867,2.824579,120990.0,120980.0,0.00206861]
[1759863600352,3.164579,120990.0,120980.0,0.00206861]
[1759863600563,0.50531658,120980.0,120970.0,1e-08]
[1759863600781,4.13630625,120980.0,120970.0,1e-08]
[1759863600993,4.9495414,120980.0,120970.0,1e-08]
[1759863601210,4.97437237,120980.0,120970.0,1e-08]
[1759863601408,5.02402237,120980.0,120970.0,1e-08]
[1759863602241,4.41223376,120980.0,120970.0,1e-08]
[1759863602406,4.3944741,120980.0,120970.0,1e-08]
[1759863603090,5.02800622,120980.0,120970.0,1e-08]
[1759863603571,4.77574271,120980.0,120970.0,1e-08]
[1759863603786,5.42484583,120980.0,120970.0,1e-08]
[1759863604547,5.44024262,120980.0,120970.0,1e-08]
[1759863604737,5.42484583,120980.0,120970.0,1e-08]
[1759863605174,5.37519583,120980.0,120970.0,1e-08]
[1759863606043,4.71067583,120980.0,120970.0,1e-08]
[1759863606337,5.37519583,120980.0,120970.0,1e-08]
[1759863606815,5.37519583,120980.0,120970.0,0.00051729]
[1759863606951,6.71881583,120980.0,120970.0,1e-08]
[1759863607162,7.13512483,120980.0,120970.0,1e-08]
[1759863607369,7.15284678,120980.0,120970.0,1e-08]
[1759863608027,7.17594117,120980.0,120970.0,1e-08]
[1759863608203,6.50372329,120980.0,120970.0,1e-08]
[1759863608409,7.16824329,120980.0,120970.0,1e-08]
[1759863608615,7.16823595,120980.0,120970.0,1e-08]
[1759863609172,7.15169595,120980.0,120970.0,1e-08]
[1759863609352,6.48717595,120980.0,120970.0,1e-08]
[1759863609561,7.15169595,120980.0,120970.0,1e-08]
[1759863609993,7.15169126,120980.0,120970.0,1e-08]
[1759863610413,7.13396931,120980.0,120970.0,1e-08]
[1759863611167,6.48716368,120980.0,120970.0,1e-08]
[1759863611372,7.13400931,120980.0,120970.0,1e-08]
[1759863611598,6.46944931,120980.0,120970.0,1e-08]
[1759863611795,7.13400931,120980.0,120970.0,1e-08]
[1759863612990,6.46944931,120980.0,120970.0,1e-08]
[1759863613193,1.04436061,120980.0,120970.0,1e-08]
[1759863613398,0.40744961,120980.0,120970.0,0.04241001]
[1759863613604,0.004,120980.0,120970.0,0.91535886]
[1759863613812,0.004,120980.0,120970.0,1.04116616]
[1759863614011,0.23852,120980.0,120970.0,1.04116616]
[1759863614213,0.31269963,120990.0,120970.0,0.96589886]
[1759863614425,0.23452,120980.0,120970.0,0.87406886]
[1759863614638,0.23652,120980.0,120970.0,0.89934886]
[1759863614807,0.23652,120980.0,120970.0,0.25843025]
[1759863615064,0.23452,120980.0,120970.0,0.32998025]
[1759863615226,0.06139666,120990.0,120980.0,0.16531658]
[1759863615227,0.22670101,120990.0,120980.0,0.16531658]
[1759863615432,0.46122101,120990.0,120980.0,0.20988658]
[1759863615609,0.46122101,120990.0,120980.0,0.38171338]
[1759863615807,0.22670101,120990.0,120980.0,0.30171658]
[1759863616016,0.22670101,120990.0,120980.0,1.41595725]
[1759863616017,0.00086452,120990.0,120980.0,1.41595725]
[1759863616253,0.00086452,120990.0,120980.0,1.46044409]
[1759863617073,0.00086452,120990.0,120980.0,0.84465548]
[1759863617289,0.00086452,120990.0,120980.0,1.46044409]
[1759863617549,0.00086452,120990.0,120980.0,1.54344089]
[1759863617786,0.00086452,120990.0,120980.0,1.46244409]
[1759863617982,0.00086452,120990.0,120980.0,1.46944409]
[1759863618447,0.00086452,120990.0,120980.0,2.3197527]
[1759863618670,0.00086452,120990.0,120980.0,2.39141776]
[1759863618892,0.00086452,120990.0,120980.0,2.45064465]
[1759863619133,0.00086452,120990.0,120980.0,2.49641455]
[1759863619364,0.00086452,120990.0,120980.0,2.55553444]
[1759863620493,0.00086452,120990.0,120980.0,2.55353444]
[1759863620769,0.00086452,120990.0,120980.0,2.55053444]
[1759863621104,0.00086452,120990.0,120980.0,2.56153444]
[1759863621357,0.00086452,120990.0,120980.0,2.64653444]
[1759863621592,0.06619503,121040.0,121030.0,0.16524828]
[1759863621807,0.06619503,121040.0,121030.0,0.82560689]
[1759863622013,0.06619503,121040.0,121030.0,1.04797369]
[1759863622744,0.40500157,121050.0,121030.0,0.96797689]
[1759863622966,0.00050471,121040.0,121030.0,0.87614689]
[1759863623184,0.00050471,121040.0,121030.0,0.26050828]
[1759863623405,0.00050471,121040.0,121030.0,0.96897689]
[1759863623821,0.00050471,121040.0,121030.0,0.96797689]
[1759863624029,0.00050471,121040.0,121030.0,1.05497369]
[1759863624237,0.00050471,121040.0,121030.0,1.07506233]
[1759863624444,0.29892934,121040.0,121030.0,0.008]
[1759863624658,0.91471795,121040.0,121030.0,0.008]
[1759863624866,1.14915795,121040.0,121030.0,0.008]
[1759863625077,0.53336934,121040.0,121030.0,0.008]
[1759863625310,0.40017934,121040.0,121030.0,0.1444]
[1759863625523,0.40017934,121040.0,121030.0,0.16981]
[1759863625735,0.40017934,121040.0,121030.0,0.1444]
[1759863626158,0.44292934,121040.0,121030.0,0.1434]
[1759863626377,0.40117934,121040.0,121030.0,0.1434]
[1759863627232,0.25269116,121040.0,121030.0,0.04457]
[1759863627435,0.42102765,121040.0,121030.0,0.04457]
[1759863627640,0.42102765,121040.0,121030.0,0.04957]
[1759863628054,0.37827765,121040.0,121030.0,0.14678601]
[1759863628254,0.00410186,121040.0,121030.0,0.38785429]
[1759863628453,0.00410186,121040.0,121030.0,1.0036429]
[1759863628889,0.00410186,121040.0,121030.0,0.38785429]
[1759863629130,0.00410186,121040.0,121030.0,1.0036429]
[1759863629524,0.00410186,121040.0,121030.0,0.97297689]
[1759863629525,0.00310186,121040.0,121030.0,0.97297689]
[1759863629735,0.00310186,121040.0,121030.0,0.94784689]
[1759863629960,0.16833649,121040.0,121030.0,0.33305828]
[1759863630381,0.16833649,121040.0,121030.0,0.1374]
[1759863630558,0.16833649,121040.0,121030.0,0.30264828]
[1759863630707,0.16833649,121040.0,121030.0,0.30964828]
[1759863631731,0.16833649,121040.0,121030.0,0.33505828]
[1759863633272,0.21108649,121040.0,121030.0,0.05257]
[1759863633510,1.02071223,121050.0,121030.0,0.1444]
[1759863633730,0.16523463,121040.0,121030.0,0.1444]
[1759863634162,0.16523463,121040.0,121030.0,0.16981]
[1759863634375,0.25364568,121050.0,121030.0,0.32805828]
[1759863634574,0.40492362,121050.0,121040.0,0.11724]
[1759863634777,0.40492362,121050.0,121040.0,0.16181]
[1759863635618,0.40492362,121050.0,121040.0,0.32704463]
[1759863635823,0.17052362,121050.0,121040.0,0.94283324]
[1759863636031,0.40488098,121050.0,121040.0,1.04796004]
[1759863636485,0.23966,121050.0,121040.0,1.04796004]
[1759863636690,0.0063,121050.0,121040.0,1.07275004]
[1759863637331,0.0063,121050.0,121040.0,1.07575004]
[1759863637984,0.0053,121050.0,121040.0,1.07275004]
[1759863638477,0.0053,121050.0,121040.0,1.07975004]
[1759863639060,0.0053,121050.0,121040.0,1.08075004]
[1759863639680,0.0053,121050.0,121040.0,1.1638721]
[1759863640449,0.00581679,121050.0,121040.0,2.11966071]
[1759863641279,0.00581679,121050.0,121040.0,1.5038721]
[1759863641476,0.00581679,121050.0,121040.0,2.11966071]
[1759863642119,0.00581679,121050.0,121040.0,2.14981261]
[1759863642324,0.00581679,121050.0,121040.0,2.1748126]
[1759863642477,0.00581679,121050.0,121040.0,2.21908289]
[1759863642700,0.00581679,121050.0,121040.0,2.22489968]
[1759863642898,0.00581679,121050.0,121040.0,2.54529968]
[1759863643100,0.00581679,121050.0,121040.0,3.15014332]
[1759863643512,0.00581679,121050.0,121040.0,3.17390009]
[1759863643734,0.00581679,121050.0,121040.0,2.84450009]
[1759863643961,0.00581679,121050.0,121040.0,3.17790009]
[1759863644411,0.00581679,121050.0,121040.0,3.17990009]
[1759863644616,0.00581679,121050.0,121040.0,2.85950009]
[1759863644834,0.00581679,121050.0,121040.0,3.17786009]
[1759863645239,0.06619503,121090.0,121080.0,0.16518004]
[1759863645464,0.06619503,121090.0,121080.0,0.54574401]
[1759863645465,0.06634635,121090.0,121080.0,0.54574401]
[1759863645687,0.06634635,121090.0,121080.0,1.16021763]
[1759863645885,0.06634635,121090.0,121080.0,1.18712763]
[1759863646080,0.06634635,121090.0,121080.0,0.14612397]
[1759863646081,0.16531772,121090.0,121080.0,0.14612397]
[1759863646295,0.00015132,121090.0,121080.0,0.29396004]
[1759863646489,0.00015132,121090.0,121080.0,0.93538366]
[1759863646736,0.16531772,121090.0,121080.0,0.94038366]
[1759863647091,0.00015132,121090.0,121080.0,1.55485728]
[1759863647360,0.00015132,121090.0,121080.0,0.94038366]
[1759863647566,0.00015132,121090.0,121080.0,1.63485408]
[1759863648056,0.00015132,121090.0,121080.0,1.86925408]
[1759863649158,0.00015132,121090.0,121080.0,1.88842653]
[1759863649291,0.00015132,121090.0,121080.0,1.91476653]
[1759863650581,0.20381595,121110.0,121090.0,0.0301519]
[1759863650582,0.00808734,121110.0,121090.0,0.0301519]
[1759863650831,0.0004,121110.0,121100.0,4.83260844]
[1759863651032,0.0004,121110.0,121100.0,4.87698255]
[1759863651268,0.0004,121110.0,121100.0,4.83260844]
[1759863651501,0.0004,121110.0,121100.0,4.87691471]
[1759863651743,0.0004,121110.0,121100.0,4.83260844]
[1759863651962,0.0004,121110.0,121100.0,4.91173933]
[1759863652173,1e-08,121120.0,121110.0,0.56029101]
[1759863652382,1e-08,121120.0,121110.0,2.67067605]
[1759863652601,1e-08,121120.0,121110.0,2.71319605]
[1759863652827,1e-08,121120.0,121110.0,3.03431605]
[1759863653068,1e-08,121120.0,121110.0,3.11431285]
[1759863653244,5.044e-05,121120.0,121110.0,2.34484627]
[1759863653431,5.044e-05,121120.0,121110.0,1.99786033]
[1759863654131,5.044e-05,121120.0,121110.0,2.00186033]
[1759863654325,5.044e-05,121120.0,121110.0,2.01586033]
[1759863654456,5.044e-05,121120.0,121110.0,1.97155822]
[1759863654871,5.044e-05,121120.0,121110.0,2.66909536]
[1759863655270,5.044e-05,121120.0,121110.0,2.68392627]
[1759863656051,5.044e-05,121120.0,121110.0,1.54029044]
[1759863656454,5.044e-05,121120.0,121110.0,1.77545044]
[1759863656660,5.044e-05,121120.0,121110.0,1.74601832]
[1759863656878,0.00366578,121120.0,121110.0,1.74201832]
[1759863657093,0.00366578,121120.0,121110.0,1.72801832]
[1759863657267,0.00366578,121120.0,121110.0,1.74101832]
[1759863657472,0.00366578,121120.0,121110.0,1.58585512]
[1759863657699,0.00366578,121120.0,121110.0,1.82097512]
[1759863657907,0.00366578,121120.0,121110.0,0.88831798]
[1759863658113,0.00366578,121120.0,121110.0,1.81897512]
[1759863658319,0.00366578,121120.0,121110.0,1.81893512]
[1759863658535,0.00366578,121120.0,121110.0,0.43033118]
[1759863658753,0.00366578,121120.0,121110.0,1.12786832]
[1759863658957,0.00366578,121120.0,121110.0,1.36294832]
[1759863659172,0.00366578,121120.0,121110.0,1.12786832]
[1759863659369,0.00366578,121120.0,121110.0,1.36294832]
[1759863659577,0.00366578,121120.0,121110.0,1.37594832]
[1759863659905,0.00366578,121120.0,121110.0,1.36494832]
[1759863660125,0.00366578,121120.0,121110.0,1.36294832]
[1759863660322,0.00366578,121120.0,121110.0,1.37190832]
[1759863660534,0.00366578,121120.0,121110.0,1.45290512]
[1759863660957,0.00366578,121120.0,121110.0,1.47789512]
[1759863662937,0.00366578,121120.0,121110.0,1.39789832]
[1759863668499,0.00366578,121120.0,121110.0,1.16285832]
[1759863668729,0.00366578,121120.0,121110.0,1.39769832]
[1759863669914,0.00366578,121120.0,121110.0,1.16285832]
[1759863670117,0.00366578,121120.0,121110.0,1.39765832]
[1759863670315,0.00366578,121120.0,121110.0,1.47765512]
[1759863670579,0.00366578,121120.0,121110.0,1.50708724]
[1759863671133,0.00366578,121120.0,121110.0,0.8095501]
[1759863671331,0.00366578,121120.0,121110.0,1.50708724]
[1759863672090,0.00366578,121120.0,121110.0,1.50704724]
[1759863673186,0.00366578,121120.0,121110.0,1.86191723]
[1759863673367,0.00366578,121120.0,121110.0,2.58960627]
[1759863673570,0.00366578,121120.0,121110.0,2.54530416]
[1759863673850,0.00366578,121120.0,121110.0,1.84776702]
[1759863673963,0.00366578,121120.0,121110.0,2.60433122]
[1759863674385,0.00366578,121120.0,121110.0,2.62933121]
[1759863674597,0.00366578,121120.0,121110.0,2.57030415]
[1759863675013,0.00067002,121120.0,121110.0,2.57030415]
[1759863675247,1e-08,121120.0,121110.0,2.74441458]
[1759863675681,1e-08,121120.0,121110.0,3.08809458]
[1759863675904,1e-08,121120.0,121110.0,3.17297458]
[1759863676113,1e-08,121120.0,121110.0,3.17597458]
[1759863676532,7e-05,121130.0,121120.0,0.19527739]
[1759863676737,7e-05,121130.0,121120.0,2.22868373]
[1759863676948,7e-05,121130.0,121120.0,2.27316373]
[1759863677146,0.00058629,121130.0,121120.0,2.27316373]
[1759863678179,0.00058629,121130.0,121120.0,2.05224373]
[1759863678383,0.00058629,121130.0,121120.0,2.37296373]
[1759863678793,0.00058629,121130.0,121120.0,2.43577109]
[1759863679003,0.00058629,121130.0,121120.0,2.43777109]
[1759863679425,0.00058629,121130.0,121120.0,2.11705109]
[1759863679643,0.00058629,121130.0,121120.0,2.43769109]
[1759863680353,1e-08,121150.0,121140.0,1.93032441]
[1759863680608,1e-08,121150.0,121140.0,1.70393648]
[1759863680777,1e-08,121150.0,121140.0,1.83647648]
[1759863680911,0.00103236,121150.0,121140.0,1.99834648]
[1759863681792,0.00103236,121150.0,121140.0,2.00734648]
[1759863682572,0.00103236,121150.0,121140.0,1.68666648]
[1759863682795,0.00103236,121150.0,121140.0,2.00734648]
[1759863684209,0.00103236,121150.0,121140.0,1.68666648]
[1759863684436,0.00103236,121150.0,121140.0,1.99826648]
[1759863684807,0.00103236,121150.0,121140.0,2.01126648]
[1759863685231,0.00103236,121150.0,121140.0,2.73380361]
[1759863686317,1e-08,121150.0,121140.0,2.73380361]
[1759863686551,1e-08,121150.0,121140.0,2.65974735]
[1759863686760,0.1,121170.0,121160.0,1.59029716]
[1759863686996,0.10050458,121170.0,121160.0,2.0620733]
[1759863687240,0.10050458,121170.0,121160.0,2.2454833]
[1759863687457,0.10050458,121170.0,121160.0,2.2706433]
[1759863687918,0.10050458,121170.0,121160.0,2.2826433]
[1759863688128,0.0004,121180.0,121170.0,0.19520925]
[1759863688360,0.01451204,121210.0,121200.0,0.86255364]
[1759863688583,0.01466334,121210.0,121200.0,1.41853116]
[1759863689019,0.01466334,121210.0,121200.0,1.4332939]
[1759863689527,0.01466334,121210.0,121200.0,1.41850873]
[1759863689745,0.01466334,121210.0,121200.0,2.19048597]
[1759863689962,0.01466334,121210.0,121200.0,2.64423356]
[1759863690232,0.01466334,121210.0,121200.0,2.79342722]
[1759863690640,0.01466334,121210.0,121200.0,2.78642722]
[1759863690858,0.01466334,121210.0,121200.0,2.46582722]
[1759863691061,0.01666334,121210.0,121200.0,2.38947357]
[1759863691273,0.01666334,121210.0,121200.0,2.73527356]
[1759863691494,0.01466334,121210.0,121200.0,2.73527356]
[1759863691976,0.01466334,121210.0,121200.0,1.69193643]
[1759863692210,0.01466334,121210.0,121200.0,2.65121779]
[1759863692432,0.01466334,121210.0,121200.0,2.6953542]
[1759863692874,0.01775863,121210.0,121200.0,2.6953542]
[1759863693097,0.01775863,121210.0,121200.0,2.65121779]
[1759863693367,0.01775863,121210.0,121200.0,2.69532631]
[1759863693611,0.01775863,121210.0,121200.0,2.78090205]
[1759863693837,0.01775863,121210.0,121200.0,2.73679353]
[1759863695817,0.01775863,121210.0,121200.0,2.78087705]
[1759863696470,0.01775863,121210.0,121200.0,2.46007705]
[1759863696895,0.01775863,121210.0,121200.0,1.67696417]
[1759863697125,0.01775863,121210.0,121200.0,2.60942131]
[1759863697342,0.01775863,121210.0,121200.0,2.72460649]
[1759863697546,0.01775863,121210.0,121200.0,2.40388649]
[1759863697758,0.01775863,121210.0,121200.0,2.72460649]
[1759863698198,0.01775863,121210.0,121200.0,2.69522131]
[1759863698451,0.01775863,121210.0,121200.0,2.69526131]
[1759863698666,0.01775863,121210.0,121200.0,2.60942131]
[1759863698869,0.01775863,121210.0,121200.0,2.69522131]
[1759863700612,0.01775863,121210.0,121200.0,2.37450131]
[1759863700818,0.01775863,121210.0,121200.0,1.91180417]
[1759863701069,0.01775863,121210.0,121200.0,2.69514131]
[1759863701701,0.01775863,121210.0,121200.0,2.69515042]
[1759863702357,0.01775863,121210.0,121200.0,2.37451042]
[1759863702573,0.01775863,121210.0,121200.0,2.69515042]